[Event "Championnat d'Europe de Blitz"]
[Date "2024.12.09"]
[White "Quparadze, Giga"]
[Black "Pichot, Alan"]
[WhiteElo "2537"]
[BlackElo "2637"]
[Round "13.8"]
[Result "0-1"]
[TimeControl "180+2"]

1. e4 {[%emt 00:18:38] [%clk 00:03:04]} e5 {[%emt 00:00:03] [%clk 00:03:03]} 2.
Nf3 {[%clk 00:03:04]} Nc6 {[%emt 00:00:01] [%clk 00:03:04]} 3. Bb5 {[%emt
00:00:01] [%clk 00:03:05]} g6 {[%emt 00:00:02] [%clk 00:03:04]} 4. c3 {[%emt
00:00:01] [%clk 00:03:05]} a6 {[%emt 00:00:02] [%clk 00:03:05]} 5. Ba4 {[%emt
00:00:01] [%clk 00:03:06]} d6 {[%clk 00:03:05]} 6. d4 {[%emt 00:00:02] [%clk
00:03:07]} Bd7 {[%emt 00:00:01] [%clk 00:03:06]} 7. O-O {[%emt 00:00:03] [%clk
00:03:06]} Bg7 {[%emt 00:00:02] [%clk 00:03:07]} 8. h3 {[%emt 00:00:01] [%clk
00:03:05]} Nf6 {[%emt 00:00:02] [%clk 00:03:07]} 9. Re1 {[%emt 00:00:03] [%clk
00:03:05]} O-O {[%emt 00:00:02] [%clk 00:03:07]} 10. Nbd2 {[%clk 00:03:05]} Re8
{[%emt 00:00:15] [%clk 00:02:54]} 11. Bc2 {[%emt 00:00:06] [%clk 00:03:01]} a5
{[%emt 00:00:07] [%clk 00:02:50]} 12. a4 {[%emt 00:00:04] [%clk 00:02:59]} exd4
{[%emt 00:00:09] [%clk 00:02:43]} 13. Nxd4 {[%emt 00:00:02] [%clk 00:02:59]} d5
{[%emt 00:00:26] [%clk 00:02:19]} 14. Nxc6 {[%emt 00:00:07] [%clk 00:02:54]}
Bxc6 {[%clk 00:02:20]} 15. e5 {[%emt 00:00:01] [%clk 00:02:54]} Nd7 {[%emt
00:00:38] [%clk 00:01:45]} 16. f4 {[%emt 00:00:01] [%clk 00:02:55]} f6 {[%emt
00:00:14] [%clk 00:01:33]} 17. e6 {[%emt 00:00:01] [%clk 00:02:56]} Nc5 {[%emt
00:00:01] [%clk 00:01:34]} 18. f5 {[%clk 00:02:57]} d4 {[%emt 00:00:02] [%clk
00:01:34]} 19. fxg6 {[%emt 00:00:46] [%clk 00:02:13]} d3 {[%emt 00:00:02] [%clk
00:01:35]} 20. gxh7+ {[%emt 00:00:01] [%clk 00:02:13]} Kh8 {[%emt 00:00:02]
[%clk 00:01:35]} 21. Bb3 {[%emt 00:00:01] [%clk 00:02:14]} Nxb3 {[%emt 00:00:07]
[%clk 00:01:30]} 22. Qxb3 {[%emt 00:00:08] [%clk 00:02:08]} Qd6 {[%emt 00:00:04]
[%clk 00:01:29]} 23. Nf1 {[%emt 00:00:26] [%clk 00:01:43]} Rad8 {[%emt 00:00:19]
[%clk 00:01:12]} 24. Bd2 {[%emt 00:00:10] [%clk 00:01:35]} Qc5+ {[%emt 00:00:22]
[%clk 00:00:52]} 25. Be3 {[%emt 00:00:03] [%clk 00:01:33]} Qf5 {[%emt 00:00:03]
[%clk 00:00:52]} 26. Qc4 {[%emt 00:00:09] [%clk 00:01:26]} Rxe6 {[%emt 00:00:19]
[%clk 00:00:35]} 27. Ng3 {[%emt 00:00:21]} Qd5 {[%clk 00:00:31]} 28. Qxd5 {[%emt
00:00:02] [%clk 00:01:12]} Bxd5 {[%emt 00:00:04] [%clk 00:00:29]} 29. Bd2 {[%emt
00:00:03] [%clk 00:01:11]} Bf8 {[%emt 00:00:11] [%clk 00:00:21]} 30. Rxe6 {[%emt
00:00:08] [%clk 00:01:05]} Bxe6 {[%clk 00:00:22]} 31. Re1 {[%emt 00:00:03] [%clk
00:01:04]} Bf7 {[%emt 00:00:03] [%clk 00:00:21]} 32. Ne4 {[%emt 00:00:02] [%clk
00:01:03]} Be7 {[%emt 00:00:14] [%clk 00:00:10]} 33. Kh1 {[%emt 00:00:13] [%clk
00:00:52]} Bg6 {[%emt 00:00:02] [%clk 00:00:10]} 34. Ng5 {[%emt 00:00:06] [%clk
00:00:47]} Rd7 {[%emt 00:00:06] [%clk 00:00:08]} 35. Ne6 {[%emt 00:00:04] [%clk
00:00:44]} Kxh7 {[%emt 00:00:04] [%clk 00:00:06]} 36. Nd4 {[%emt 00:00:07] [%clk
00:00:39]} Bd6 {[%emt 00:00:03] [%clk 00:00:06]} 37. Rf1 {[%emt 00:00:04] [%clk
00:00:36]} Be5 {[%emt 00:00:02] [%clk 00:00:06]} 38. Ne6 {[%emt 00:00:06] [%clk
00:00:32]} Kg8 {[%emt 00:00:03] [%clk 00:00:05]} 39. Nf4 {[%emt 00:00:04] [%clk
00:00:30]} Be4 {[%emt 00:00:02] [%clk 00:00:05]} 40. Nh5 {[%emt 00:00:05] [%clk
00:00:27]} Kf7 {[%emt 00:00:04] [%clk 00:00:04]} 41. Kg1 {[%clk 00:00:28]} Ke6
{[%emt 00:00:02] [%clk 00:00:04]} 42. Nf4+ {[%emt 00:00:04] [%clk 00:00:26]} Kd6
{[%clk 00:00:06]} 43. Nh5 {[%emt 00:00:02] [%clk 00:00:25]} f5 {[%emt 00:00:01]
[%clk 00:00:06]} 44. g4 {[%emt 00:00:03] [%clk 00:00:25]} fxg4 {[%emt 00:00:01]
[%clk 00:00:07]} 45. hxg4 {[%emt 00:00:01] [%clk 00:00:26]} Kd5 {[%emt 00:00:03]
[%clk 00:00:06]} 46. Re1 {[%emt 00:00:02] [%clk 00:00:26]} Rf7 {[%emt 00:00:03]
[%clk 00:00:05]} 47. c4+ {[%emt 00:00:02] [%clk 00:00:26]} Kxc4 {[%emt 00:00:04]
[%clk 00:00:03]} 48. Rxe4+ {[%emt 00:00:01] [%clk 00:00:27]} Bd4+ {[%emt
00:00:01] [%clk 00:00:04]} 49. Be3 {[%emt 00:00:16] [%clk 00:00:13]} c5 {[%emt
00:00:02] [%clk 00:00:04]} 50. Kg2 {[%emt 00:00:01] [%clk 00:00:13]} Kd5 {[%emt
00:00:02]} 51. Re8 {[%clk 00:00:14]} Bxe3 {[%emt 00:00:02] [%clk 00:00:06]} 52.
Rxe3 {[%emt 00:00:01] [%clk 00:00:15]} Kd4 {[%clk 00:00:07]} 53. Re8 {[%emt
00:00:02] [%clk 00:00:16]} Rd7 {[%emt 00:00:03] [%clk 00:00:05]} 54. Kf2 {[%emt
00:00:04] [%clk 00:00:15]} Kc4 {[%emt 00:00:03] [%clk 00:00:04]} 55. Ke1 {[%emt
00:00:02] [%clk 00:00:15]} Kb3 {[%emt 00:00:01] [%clk 00:00:05]} 56. Kd2 {[%clk
00:00:16]} Kxb2 {[%emt 00:00:01] [%clk 00:00:07]} 57. Nf4 {[%emt 00:00:02] [%clk
00:00:15]} c4 {[%emt 00:00:01] [%clk 00:00:08]} 58. Nd5 {[%emt 00:00:02] [%clk
00:00:15]} Rxd5 {[%clk 00:00:10]} 59. Rc8 {[%emt 00:00:03] [%clk 00:00:15]} Kb3
{[%emt 00:00:01] [%clk 00:00:10]} 60. Rc7 {[%emt 00:00:02] [%clk 00:00:15]} b5
{[%clk 00:00:11]} 61. axb5 {[%emt 00:00:03] [%clk 00:00:14]} Rxb5 {[%clk
00:00:12]} 62. Ke3 {[%emt 00:00:02] [%clk 00:00:15]} a4 {[%emt 00:00:02] [%clk
00:00:12]} 63. Rd7 {[%emt 00:00:05] [%clk 00:00:12]} a3 {[%emt 00:00:01] [%clk
00:00:13]} 64. Kd4 {[%emt 00:00:01] [%clk 00:00:13]} a2 {[%emt 00:00:02] [%clk
00:00:14]} 0-1

[Site "Europe Echecs"]

[Event "Championnat d'Europe de Blitz"]
[Date "2024.12.09"]
[White "Livaic, Leon"]
[Black "Pultinevicius, Paulius"]
[WhiteElo "2560"]
[BlackElo "2579"]
[Round "13.9"]
[Result "1-0"]
[TimeControl "180+2"]

1. d4 {[%clk 00:03:02]} Nf6 {[%emt 00:00:02] [%clk 00:03:03]} 2. c4 {[%emt
00:00:03] [%clk 00:03:01]} e6 {[%emt 00:00:01] [%clk 00:03:04]} 3. Nf3 {[%emt
00:00:01] [%clk 00:03:02]} d5 {[%clk 00:03:05]} 4. Nc3 {[%emt 00:00:04] [%clk
00:03:00]} c6 {[%emt 00:00:01] [%clk 00:03:06]} 5. Bg5 {[%emt 00:00:05] [%clk
00:02:56]} h6 {[%emt 00:00:02] [%clk 00:03:07]} 6. Bxf6 {[%emt 00:00:01] [%clk
00:02:57]} Qxf6 {[%emt 00:00:01] [%clk 00:03:08]} 7. Qc2 {[%emt 00:00:03] [%clk
00:02:57]} dxc4 {[%emt 00:00:02] [%clk 00:03:07]} 8. e3 {[%emt 00:00:07] [%clk
00:02:52]} b5 {[%emt 00:00:02] [%clk 00:03:08]} 9. a4 {[%clk 00:02:53]} Bb7
{[%emt 00:00:53] [%clk 00:02:17]} 10. axb5 {[%emt 00:00:02] [%clk 00:02:53]}
cxb5 {[%emt 00:00:01] [%clk 00:02:17]} 11. Nxb5 {[%clk 00:02:54]} Bb4+ {[%emt
00:00:01] [%clk 00:02:18]} 12. Nc3 {[%emt 00:00:01] [%clk 00:02:55]} O-O {[%emt
00:00:38] [%clk 00:01:43]} 13. Be2 {[%emt 00:00:01] [%clk 00:02:55]} Nd7 {[%emt
00:00:06] [%clk 00:01:40]} 14. O-O {[%emt 00:00:02] [%clk 00:02:55]} Rfc8 {[%emt
00:00:04] [%clk 00:01:38]} 15. Rfc1 {[%emt 00:00:07] [%clk 00:02:49]} Qe7 {[%emt
00:00:19] [%clk 00:01:21]} 16. Nd2 {[%emt 00:00:06] [%clk 00:02:45]} Nb6 {[%emt
00:00:12] [%clk 00:01:11]} 17. Bf3 {[%emt 00:00:01] [%clk 00:02:46]} Bxf3 {[%emt
00:00:10] [%clk 00:01:03]} 18. Nxf3 {[%emt 00:00:01] [%clk 00:02:47]} a5 {[%emt
00:00:15] [%clk 00:00:51]} 19. Qe2 {[%emt 00:00:28] [%clk 00:02:21]} a4 {[%emt
00:00:05] [%clk 00:00:48]} 20. Ne5 {[%emt 00:00:24] [%clk 00:01:58]} a3 {[%emt
00:00:07] [%clk 00:00:43]} 21. bxa3 {[%emt 00:00:06] [%clk 00:01:55]} Rxa3
{[%clk 00:00:44]} 22. Rxa3 {[%emt 00:00:17] [%clk 00:01:40]} Bxa3 {[%emt
00:00:02]} 23. Rc2 {[%emt 00:00:08] [%clk 00:01:33]} Qb4 {[%emt 00:00:32] [%clk
00:00:16]} 24. g3 {[%emt 00:00:20] [%clk 00:01:14]} Qb3 {[%emt 00:00:02] [%clk
00:00:16]} 25. Kg2 {[%emt 00:00:09] [%clk 00:01:07]} Rc7 {[%emt 00:00:06] [%clk
00:00:13]} 26. h4 {[%emt 00:00:21] [%clk 00:00:48]} Nd5 {[%emt 00:00:03] [%clk
00:00:12]} 27. Ne4 {[%emt 00:00:17] [%clk 00:00:33]} c3 {[%clk 00:00:13]} 28.
Nd3 {[%emt 00:00:02] [%clk 00:00:32]} Qc4 {[%emt 00:00:10] [%clk 00:00:05]} 29.
Qd1 {[%emt 00:00:12] [%clk 00:00:22]} Qc6 {[%emt 00:00:03] [%clk 00:00:04]} 30.
Qf3 {[%emt 00:00:05] [%clk 00:00:19]} Qa4 {[%emt 00:00:01] [%clk 00:00:05]} 31.
Qe2 {[%emt 00:00:05] [%clk 00:00:16]} Qc4 {[%emt 00:00:02] [%clk 00:00:06]} 32.
Qd1 {[%emt 00:00:01] [%clk 00:00:17]} Rb7 {[%emt 00:00:03] [%clk 00:00:05]} 33.
Qa1 {[%emt 00:00:06] [%clk 00:00:12]} Qb3 {[%emt 00:00:02] [%clk 00:00:05]} 34.
Qd1 {[%emt 00:00:07] [%clk 00:00:07]} Bb2 {[%emt 00:00:02] [%clk 00:00:05]} 35.
Nec5 {[%emt 00:00:02] [%clk 00:00:06]} Qb5 {[%emt 00:00:04] [%clk 00:00:04]} 36.
Nxb7 {[%emt 00:00:01] [%clk 00:00:07]} Qxb7 {[%emt 00:00:01] [%clk 00:00:05]}
37. Kh2 {[%emt 00:00:02] [%clk 00:00:06]} Qb3 {[%emt 00:00:02] [%clk 00:00:05]}
38. Qb1 {[%emt 00:00:03] [%clk 00:00:05]} Nb4 {[%emt 00:00:03] [%clk 00:00:05]}
39. Nxb4 {[%emt 00:00:04] [%clk 00:00:03]} Qxb4 {[%clk 00:00:06]} 40. Re2 {[%emt
00:00:01] [%clk 00:00:04]} Qc4 {[%emt 00:00:02] [%clk 00:00:06]} 41. Qc2 {[%clk
00:00:05]} Qb4 {[%emt 00:00:05] [%clk 00:00:04]} 42. Re1 {[%clk 00:00:06]} Ba3
{[%emt 00:00:03] [%clk 00:00:03]} 43. Rb1 {[%emt 00:00:01] [%clk 00:00:06]} Bb2
{[%emt 00:00:01] [%clk 00:00:04]} 44. Rd1 {[%clk 00:00:08]} Qc4 {[%emt 00:00:03]
[%clk 00:00:03]} 45. e4 {[%emt 00:00:02] [%clk 00:00:08]} Ba3 {[%emt 00:00:03]}
46. d5 {[%emt 00:00:03] [%clk 00:00:06]} exd5 {[%emt 00:00:02] [%clk 00:00:03]}
47. exd5 {[%clk 00:00:08]} Bd6 {[%clk 00:00:04]} 48. Kg2 {[%emt 00:00:03] [%clk
00:00:06]} h5 {[%emt 00:00:02] [%clk 00:00:05]} 49. Kg1 {[%emt 00:00:03] [%clk
00:00:05]} Qc5 {[%emt 00:00:03] [%clk 00:00:04]} 50. Rd3 {[%emt 00:00:01] [%clk
00:00:06]} Be5 {[%clk 00:00:06]} 51. d6 {[%emt 00:00:03] [%clk 00:00:06]} Bxd6
{[%emt 00:00:03] [%clk 00:00:04]} 52. Rxc3 {[%clk 00:00:07]} Qb4 {[%emt
00:00:04] [%clk 00:00:03]} 53. Rc8+ {[%emt 00:00:02] [%clk 00:00:07]} Bf8 {[%clk
00:00:04]} 54. Rc4 {[%emt 00:00:05] [%clk 00:00:05]} Qb5 {[%emt 00:00:01] [%clk
00:00:05]} 55. Kg2 {[%emt 00:00:02] [%clk 00:00:06]} g6 {[%emt 00:00:01] [%clk
00:00:06]} 56. Qe4 {[%clk 00:00:07]} Qd7 {[%emt 00:00:03] [%clk 00:00:06]} 57.
Rd4 {[%emt 00:00:03] [%clk 00:00:05]} Qc7 {[%emt 00:00:01] [%clk 00:00:07]} 58.
Rd5 {[%emt 00:00:02] [%clk 00:00:05]} Qc6 {[%emt 00:00:02] [%clk 00:00:06]} 59.
Qf3 {[%emt 00:00:02] [%clk 00:00:06]} Qe6 {[%emt 00:00:01] [%clk 00:00:07]} 60.
Rd4 {[%emt 00:00:04] [%clk 00:00:04]} Bc5 {[%emt 00:00:06] [%clk 00:00:03]} 61.
Re4 {[%emt 00:00:02] [%clk 00:00:04]} Qd7 {[%clk 00:00:04]} 62. Re5 {[%emt
00:00:02] [%clk 00:00:04]} Bf8 {[%emt 00:00:03] [%clk 00:00:03]} 63. Qd5 {[%emt
00:00:01] [%clk 00:00:05]} Qc7 {[%emt 00:00:01] [%clk 00:00:04]} 64. Re8 {[%clk
00:00:06]} Qb6 {[%emt 00:00:04] [%clk 00:00:03]} 65. Qa8 {[%emt 00:00:02] [%clk
00:00:06]} Qc5 {[%emt 00:00:01] [%clk 00:00:04]} 66. Qe4 {[%emt 00:00:03] [%clk
00:00:05]} Qa3 {[%emt 00:00:01] [%clk 00:00:04]} 67. Ra8 {[%emt 00:00:02] [%clk
00:00:05]} Qc5 {[%emt 00:00:01] [%clk 00:00:04]} 68. Rb8 {[%emt 00:00:03] [%clk
00:00:04]} Qd6 {[%emt 00:00:03] [%clk 00:00:05]} 69. Rb7 {[%clk 00:00:05]} Qf6
{[%clk 00:00:06]} 70. Qf3 {[%emt 00:00:04] [%clk 00:00:05]} Qe6 {[%emt 00:00:01]
[%clk 00:00:07]} 71. Ra7 {[%emt 00:00:03] [%clk 00:00:03]} Bc5 {[%emt 00:00:01]
[%clk 00:00:08]} 72. Ra8+ {[%emt 00:00:02] [%clk 00:00:04]} Bf8 {[%emt 00:00:01]
[%clk 00:00:07]} 73. Ra4 {[%emt 00:00:02] [%clk 00:00:05]} Qd7 {[%emt 00:00:03]
[%clk 00:00:07]} 74. Re4 {[%clk 00:00:05]} Qc6 {[%emt 00:00:02] [%clk 00:00:07]}
75. g4 {[%emt 00:00:01] [%clk 00:00:06]} hxg4 {[%emt 00:00:03] [%clk 00:00:06]}
76. Rxg4 {[%clk 00:00:08]} Qb5 {[%emt 00:00:04] [%clk 00:00:04]} 77. Rg5 {[%emt
00:00:02] [%clk 00:00:08]} Qb2 {[%emt 00:00:05] [%clk 00:00:00]} 1-0

[Site "Europe Echecs"]

[Event "Championnat d'Europe de Blitz"]
[Date "2024.12.09"]
[White "Mastrovasilis, Dimitrios"]
[Black "Korobov, Anton"]
[WhiteElo "2537"]
[BlackElo "2629"]
[Round "13.10"]
[Result "1-0"]
[TimeControl "180+2"]

1. e4 {[%emt 00:00:02] [%clk 00:03:02]} c5 {[%emt 00:00:01] [%clk 00:03:04]} 2.
Nf3 {[%emt 00:00:02] [%clk 00:03:03]} d6 {[%clk 00:03:05]} 3. Bb5+ {[%emt
00:00:03] [%clk 00:03:02]} Nd7 {[%emt 00:00:02] [%clk 00:03:04]} 4. d4 {[%emt
00:00:02] [%clk 00:03:02]} cxd4 {[%emt 00:00:09] [%clk 00:02:59]} 5. Qxd4 {[%emt
00:00:01] [%clk 00:03:02]} a6 {[%emt 00:00:02] [%clk 00:03:00]} 6. Bxd7+ {[%emt
00:00:05] [%clk 00:02:58]} Bxd7 {[%emt 00:00:01] [%clk 00:03:00]} 7. Nc3 {[%emt
00:00:05] [%clk 00:02:56]} e5 {[%emt 00:00:15] [%clk 00:02:48]} 8. Qd3 {[%emt
00:00:01] [%clk 00:02:56]} h6 {[%emt 00:00:03] [%clk 00:02:47]} 9. Nd2 {[%emt
00:00:03] [%clk 00:02:55]} Nf6 {[%emt 00:00:07] [%clk 00:02:42]} 10. Nc4 {[%emt
00:00:08] [%clk 00:02:49]} Be6 {[%emt 00:00:27] [%clk 00:02:17]} 11. O-O {[%emt
00:00:11] [%clk 00:02:40]} Qc7 {[%emt 00:00:05] [%clk 00:02:14]} 12. Ne3 {[%emt
00:00:04] [%clk 00:02:37]} Rc8 {[%clk 00:02:15]} 13. Bd2 {[%emt 00:00:16] [%clk
00:02:24]} Be7 {[%emt 00:00:04] [%clk 00:02:13]} 14. Rac1 {[%emt 00:00:09] [%clk
00:02:17]} b5 {[%emt 00:00:16] [%clk 00:01:59]} 15. a3 {[%emt 00:00:29] [%clk
00:01:50]} Qb7 {[%emt 00:00:08] [%clk 00:01:53]} 16. Rfd1 {[%emt 00:00:08] [%clk
00:01:44]} O-O {[%emt 00:00:07] [%clk 00:01:48]} 17. Be1 {[%emt 00:00:08] [%clk
00:01:39]} Nh5 {[%emt 00:00:31] [%clk 00:01:18]} 18. Ncd5 {[%emt 00:00:18] [%clk
00:01:23]} Bg5 {[%emt 00:00:02] [%clk 00:01:18]} 19. Bd2 {[%emt 00:00:05] [%clk
00:01:20]} Rfe8 {[%emt 00:00:26] [%clk 00:00:54]} 20. h3 {[%emt 00:00:12] [%clk
00:01:10]} Nf4 {[%emt 00:00:03] [%clk 00:00:53]} 21. Nxf4 {[%emt 00:00:05] [%clk
00:01:07]} exf4 {[%emt 00:00:01] [%clk 00:00:53]} 22. Nd5 {[%emt 00:00:20] [%clk
00:00:50]} Bxd5 {[%emt 00:00:10] [%clk 00:00:45]} 23. exd5 {[%emt 00:00:02]
[%clk 00:00:50]} Bf6 {[%emt 00:00:20] [%clk 00:00:27]} 24. Bxf4 {[%emt 00:00:14]
[%clk 00:00:37]} Bxb2 {[%emt 00:00:03] [%clk 00:00:27]} 25. Rb1 {[%emt 00:00:01]
[%clk 00:00:38]} Be5 {[%emt 00:00:09] [%clk 00:00:20]} 26. Bxe5 {[%emt 00:00:10]
[%clk 00:00:31]} Rxe5 {[%clk 00:00:21]} 27. a4 {[%emt 00:00:07] [%clk 00:00:26]}
b4 {[%emt 00:00:02] [%clk 00:00:22]} 28. c3 {[%emt 00:00:10] [%clk 00:00:18]} a5
{[%emt 00:00:01] [%clk 00:00:23]} 29. cxb4 {[%emt 00:00:02] [%clk 00:00:18]}
axb4 {[%clk 00:00:24]} 30. Qb5 {[%emt 00:00:06] [%clk 00:00:14]} Qa7 {[%emt
00:00:05] [%clk 00:00:21]} 31. Qxb4 {[%emt 00:00:06] [%clk 00:00:11]} g6 {[%emt
00:00:05] [%clk 00:00:17]} 32. Qxd6 {[%emt 00:00:05] [%clk 00:00:08]} Re2 {[%emt
00:00:01] [%clk 00:00:18]} 33. Qf4 {[%emt 00:00:02] [%clk 00:00:08]} Rce8 {[%emt
00:00:05] [%clk 00:00:15]} 34. Rf1 {[%emt 00:00:02] [%clk 00:00:08]} R2e4 {[%emt
00:00:01] [%clk 00:00:16]} 35. Qxh6 {[%emt 00:00:02] [%clk 00:00:08]} Qxa4
{[%emt 00:00:01] [%clk 00:00:17]} 36. Rbd1 {[%emt 00:00:03] [%clk 00:00:07]} Qd7
{[%emt 00:00:02] [%clk 00:00:18]} 37. d6 {[%emt 00:00:01] [%clk 00:00:08]} R8e6
{[%emt 00:00:01] [%clk 00:00:19]} 38. Qd2 {[%emt 00:00:02] [%clk 00:00:07]} Re2
{[%emt 00:00:03] [%clk 00:00:18]} 39. Qd4 {[%emt 00:00:01] [%clk 00:00:08]} R2e4
{[%emt 00:00:01] [%clk 00:00:19]} 40. Qc5 {[%emt 00:00:01] [%clk 00:00:09]} R4e5
{[%emt 00:00:03]} 41. Qc7 {[%clk 00:00:09]} 1-0

[Site "Europe Echecs"]

[Event "Championnat d'Europe de Blitz"]
[Date "2024.12.09"]
[White "Kozul, Zdenko"]
[Black "Alonso Rosell, Alvar"]
[WhiteElo "2519"]
[BlackElo "2532"]
[Round "13.11"]
[Result "0-1"]
[TimeControl "180+2"]

1. d4 {[%emt 00:23:51] [%clk 00:03:03]} Nf6 {[%clk 00:03:03]} 2. c4 {[%emt
00:00:01] [%clk 00:03:04]} c5 {[%clk 00:03:04]} 3. d5 {[%clk 00:03:05]} b5
{[%emt 00:00:02] [%clk 00:03:05]} 4. cxb5 {[%clk 00:03:05]} a6 {[%clk 00:03:07]}
5. b6 {[%emt 00:00:01] [%clk 00:03:06]} Qxb6 {[%emt 00:00:20] [%clk 00:02:48]}
6. Nc3 {[%emt 00:00:01] [%clk 00:03:07]} d6 {[%emt 00:00:03] [%clk 00:02:48]} 7.
e4 {[%emt 00:00:01] [%clk 00:03:08]} g6 {[%emt 00:00:01] [%clk 00:02:48]} 8. Nf3
{[%emt 00:00:02] [%clk 00:03:09]} Bg7 {[%emt 00:00:01] [%clk 00:02:49]} 9. Be2
{[%emt 00:00:04]} O-O {[%clk 00:02:48]} 10. O-O {[%emt 00:00:01] [%clk
00:03:10]} Nbd7 {[%emt 00:00:13] [%clk 00:02:37]} 11. Rb1 {[%emt 00:00:02] [%clk
00:03:11]} Qd8 {[%emt 00:00:16] [%clk 00:02:23]} 12. b3 {[%emt 00:00:11] [%clk
00:03:02]} Ne8 {[%emt 00:00:17] [%clk 00:02:08]} 13. Qc2 {[%emt 00:00:04] [%clk
00:03:00]} Nc7 {[%emt 00:00:04] [%clk 00:02:06]} 14. Bg5 {[%emt 00:00:21] [%clk
00:02:41]} Nb6 {[%emt 00:00:21] [%clk 00:01:47]} 15. Nd2 {[%emt 00:00:24] [%clk
00:02:19]} f5 {[%emt 00:00:09] [%clk 00:01:40]} 16. f3 {[%emt 00:00:34] [%clk
00:01:47]} h6 {[%emt 00:00:18] [%clk 00:01:23]} 17. Bh4 {[%emt 00:00:01] [%clk
00:01:48]} f4 {[%emt 00:00:04] [%clk 00:01:22]} 18. Rfd1 {[%emt 00:00:10] [%clk
00:01:40]} Nd7 {[%emt 00:00:06] [%clk 00:01:18]} 19. a4 {[%emt 00:00:06] [%clk
00:01:37]} Ne5 {[%emt 00:00:10] [%clk 00:01:10]} 20. Nc4 {[%emt 00:00:02] [%clk
00:01:37]} Rb8 {[%emt 00:00:01] [%clk 00:01:11]} 21. Na2 {[%emt 00:00:30] [%clk
00:01:09]} g5 {[%emt 00:00:16] [%clk 00:00:57]} 22. Be1 {[%emt 00:00:10]} Ne8
{[%clk 00:00:50]} 23. Bc3 {[%emt 00:00:03] [%clk 00:01:09]} h5 {[%emt 00:00:18]
[%clk 00:00:34]} 24. Qb2 {[%emt 00:00:19] [%clk 00:00:51]} Nxc4 {[%emt 00:00:10]
[%clk 00:00:26]} 25. Bxc4 {[%emt 00:00:02] [%clk 00:00:52]} g4 {[%emt 00:00:05]
[%clk 00:00:22]} 26. e5 {[%emt 00:00:18] [%clk 00:00:36]} Bf5 {[%emt 00:00:04]
[%clk 00:00:21]} 27. Rbc1 {[%emt 00:00:10] [%clk 00:00:27]} Kh7 {[%emt 00:00:09]
[%clk 00:00:15]} 28. Qe2 {[%emt 00:00:08] [%clk 00:00:21]} dxe5 {[%emt 00:00:06]
[%clk 00:00:11]} 29. Bxe5 {[%emt 00:00:02] [%clk 00:00:20]} Nd6 {[%emt 00:00:03]
[%clk 00:00:10]} 30. Nc3 {[%emt 00:00:09] [%clk 00:00:14]} gxf3 {[%emt 00:00:05]
[%clk 00:00:07]} 31. Qxf3 {[%emt 00:00:02] [%clk 00:00:13]} Bxe5 {[%emt
00:00:02] [%clk 00:00:07]} 32. Qxh5+ {[%emt 00:00:07] [%clk 00:00:08]} Kg8
{[%clk 00:00:08]} 33. Re1 {[%emt 00:00:08] [%clk 00:00:03]} Bd4+ {[%emt
00:00:01] [%clk 00:00:10]} 34. Kh1 {[%clk 00:00:04]} Rf7 {[%emt 00:00:03] [%clk
00:00:10]} 35. Ne2 {[%emt 00:00:03] [%clk 00:00:00]} 0-1

[Site "Europe Echecs"]